bitfinex-derivatives/quotes_BTCF0:USTF0_20251213
["timestamp","ask_amount","ask_price","bid_price","bid_amount"]
[1765590288722,0.00016631,90190.0,90189.0,0.0702969]
[1765590289627,0.00116631,90190.0,90189.0,0.0722969]
[1765590289922,0.00116631,90190.0,90189.0,0.0752969]
[1765590290524,0.00116631,90190.0,90189.0,0.0722969]
[1765590290724,0.01116631,90190.0,90189.0,0.0732969]
[1765590291230,0.01016631,90190.0,90189.0,0.0712969]
[1765590291425,0.01916631,90190.0,90189.0,0.0722969]
[1765590294233,0.01916631,90190.0,90189.0,0.1941969]
[1765590297436,0.01916631,90190.0,90189.0,0.5549969]
[1765590303637,0.04311406,90190.0,90189.0,0.5549969]
[1765590305739,0.07073028,90213.0,90212.0,0.07409]
[1765590305937,0.12850028,90213.0,90212.0,0.07409]
[1765590306140,0.07440418,90213.0,90212.0,0.07409]
[1765590306930,0.07640418,90213.0,90212.0,0.08709]
[1765590307429,0.07740418,90213.0,90212.0,0.10009]
[1765590307832,0.07540418,90213.0,90212.0,0.08709]
[1765590308025,0.07740418,90213.0,90212.0,0.10009]
[1765590308535,0.0316,90213.0,90212.0,0.10009]
[1765590308838,0.003,90213.0,90212.0,0.10009]
[1765590309433,0.002,90213.0,90212.0,0.09309]
[1765590309939,0.001,90213.0,90212.0,0.08709]
[1765590310245,0.0296,90213.0,90212.0,0.09609]
[1765590310829,0.05877,90213.0,90212.0,0.09609]
[1765590311036,0.05877,90213.0,90212.0,0.10209]
[1765590311037,0.05977,90213.0,90212.0,0.10209]
[1765590311442,0.05877,90213.0,90212.0,0.08709]
[1765590311645,0.06977,90213.0,90212.0,0.07509]
[1765590314940,0.06977,90213.0,90212.0,0.02829]
[1765590316038,0.06977,90213.0,90212.0,0.001]
[1765590317144,0.43057,90213.0,90212.0,0.001]
[1765590317737,0.4539737,90213.0,90212.0,0.001]
[1765590318449,0.51361998,90213.0,90212.0,0.001]
[1765590320754,0.4539737,90213.0,90212.0,0.001]
[1765590320950,0.5134857,90213.0,90212.0,0.001]
[1765590322253,0.4539737,90213.0,90212.0,0.001]
[1765590338461,0.4652837,90213.0,90212.0,0.001]
[1765590344560,0.54481207,90213.0,90212.0,0.001]
[1765590344961,0.54476047,90213.0,90212.0,0.001]
[1765590345469,0.4652837,90213.0,90212.0,0.001]
[1765590346664,0.067895,90204.0,90203.0,0.02764631]
[1765590346964,1.1448187,90204.0,90203.0,0.02764631]
[1765590347567,1.1448187,90204.0,90203.0,0.05473631]
[1765590348772,1.1518187,90204.0,90203.0,0.05573631]
[1765590348968,1.1558187,90204.0,90203.0,0.05573631]
[1765590351976,1.16148471,90204.0,90203.0,0.05573631]
[1765590357073,1.16148471,90204.0,90203.0,0.00116631]
[1765590357274,0.0678364,90193.0,90192.0,0.07622]
[1765590357471,0.0912401,90193.0,90192.0,0.07622]
[1765590358574,0.0972401,90193.0,90192.0,0.07722]
[1765590358876,0.0861537,90193.0,90192.0,0.07722]
[1765590359075,0.0324037,90193.0,90192.0,0.07722]
[1765590359372,0.0602337,90193.0,90192.0,0.07722]
[1765590360274,0.0324037,90193.0,90192.0,0.07722]
[1765590360476,0.0891537,90193.0,90192.0,0.07722]
[1765590360973,0.08905462,90193.0,90192.0,0.07722]
[1765590380696,0.08905462,90193.0,90192.0,0.06041]
[1765590380990,0.08905462,90193.0,90192.0,0.07696]
[1765590383588,0.08905462,90193.0,90192.0,0.001]
[1765590383988,0.08905462,90193.0,90192.0,0.0574]
[1765590389091,0.08905462,90193.0,90192.0,0.07521]
[1765590392698,0.44985462,90193.0,90192.0,0.07521]
[1765590393895,0.50947781,90193.0,90192.0,0.07521]
[1765590398099,0.43202102,90193.0,90192.0,0.07521]
[1765590398308,0.49164421,90193.0,90192.0,0.07521]
[1765590398701,0.51989421,90193.0,90192.0,0.07521]
[1765590403819,0.46027102,90193.0,90192.0,0.07521]
[1765590414221,0.46027102,90193.0,90192.0,0.001]
[1765590414622,0.46027102,90193.0,90192.0,0.05774]
[1765590421237,0.46027102,90193.0,90192.0,0.03057]
[1765590421943,0.46027102,90193.0,90192.0,0.05774]
[1765590423743,0.09947102,90193.0,90192.0,0.05774]
[1765590423943,0.46027102,90193.0,90192.0,0.05774]
[1765590427643,0.09947102,90193.0,90192.0,0.05774]
[1765590427842,0.46027102,90193.0,90192.0,0.05774]
[1765590429738,0.46027102,90193.0,90192.0,0.07573]
[1765590430240,0.46027102,90193.0,90192.0,0.05774]
[1765590433340,0.46027102,90193.0,90192.0,0.001]
[1765590437447,0.46027102,90193.0,90192.0,0.03057]
[1765590438351,0.09947102,90193.0,90192.0,0.03057]
[1765590438537,0.46027102,90193.0,90192.0,0.001]
[1765590439452,0.09947102,90193.0,90192.0,0.001]
[1765590439640,0.46027102,90193.0,90192.0,0.001]
[1765590440140,0.46027102,90193.0,90192.0,0.03057]
[1765590440549,0.46027102,90193.0,90192.0,0.001]
[1765590441351,0.0691075,90184.0,90183.0,0.17948]
[1765590441648,0.45321212,90184.0,90183.0,0.17948]
[1765590443243,0.45821212,90184.0,90183.0,0.18048]
[1765590443848,0.45921212,90184.0,90183.0,0.18048]
[1765590444245,0.45921212,90184.0,90183.0,0.1229]
[1765590444457,0.45921212,90184.0,90183.0,0.18048]
[1765590446653,0.45921212,90184.0,90183.0,0.05858]
[1765590447151,0.45921212,90184.0,90183.0,0.02972]
[1765590447352,0.45921212,90184.0,90183.0,0.001]
[1765590447651,0.51883531,90184.0,90183.0,0.001]
[1765590448051,0.0691085,90176.0,90175.0,0.05770546]
[1765590448347,0.09241312,90176.0,90175.0,0.05770546]
[1765590449146,0.09541312,90176.0,90175.0,0.05870546]
[1765590449340,0.09541312,90176.0,90175.0,0.00112546]
[1765590450845,0.09541312,90176.0,90175.0,0.02984546]
[1765590451045,0.09541312,90176.0,90175.0,0.05870546]
[1765590459559,0.09541312,90176.0,90175.0,0.00112546]
[1765590460759,0.09541312,90176.0,90175.0,0.02984546]
[1765590460961,0.09541312,90176.0,90175.0,0.05870546]
[1765590465362,0.09541312,90176.0,90175.0,0.00112546]
[1765590467356,0.0955017,90176.0,90175.0,0.00112546]
[1765590469154,0.0955017,90176.0,90175.0,0.02984546]
[1765590469360,0.0955017,90176.0,90175.0,0.00112546]
[1765590474672,0.4563017,90176.0,90175.0,0.00112546]
[1765590475472,0.0955017,90176.0,90175.0,0.00112546]
[1765590475662,0.4563017,90176.0,90175.0,0.00112546]
[1765590483172,0.4533017,90176.0,90175.0,0.00012546]
[1765590483376,0.4603017,90176.0,90175.0,0.00112546]
[1765590483878,0.4643017,90176.0,90175.0,0.00112546]
[1765590485179,0.0694096,90167.0,90166.0,0.12339238]
[1765590485371,0.0928028,90167.0,90166.0,0.05571]
[1765590485880,0.0817132,90167.0,90166.0,0.05571]
[1765590486070,0.08183866,90167.0,90166.0,0.05571]
[1765590486273,0.02851866,90167.0,90166.0,0.05671]
[1765590486672,0.03151866,90167.0,90166.0,0.05671]
[1765590491280,0.03151866,90167.0,90166.0,0.17861]
[1765590496682,0.03151866,90167.0,90166.0,0.53941]
[1765590499581,1e-08,90167.0,90166.0,0.53941]
[1765590499786,0.00016631,90176.0,90175.0,0.0696086]
[1765590500169,0.08148104,90176.0,90175.0,0.0696086]
[1765590500991,0.08848104,90176.0,90175.0,0.0706086]
[1765590501691,0.09248104,90176.0,90175.0,0.0706086]
[1765590502882,0.09248104,90176.0,90175.0,0.1925086]
[1765590506796,0.03479104,90176.0,90175.0,0.1925086]
[1765590508790,0.01116631,90176.0,90175.0,0.1925086]
[1765590509497,0.06864631,90176.0,90175.0,0.05952]
[1765590509697,0.09225006,90176.0,90175.0,0.001]
[1765590511096,0.06364006,90176.0,90175.0,0.05906]
[1765590512204,0.09225006,90176.0,90175.0,0.05906]
[1765590520810,0.09225006,90176.0,90175.0,0.18096]
[1765590526920,0.09225006,90176.0,90175.0,0.05906]
[1765590536020,0.06864631,90176.0,90175.0,0.05906]
[1765590536221,0.09243504,90176.0,90175.0,0.05906]
[1765590542822,0.03495504,90176.0,90175.0,0.05906]
[1765590543028,0.06443504,90176.0,90175.0,0.05906]
[1765590543529,0.09381504,90176.0,90175.0,0.05906]
[1765590545319,0.03495504,90176.0,90175.0,0.05906]
[1765590546622,0.01116631,90176.0,90175.0,0.05906]
[1765590547218,0.01116631,90176.0,90175.0,0.11893505]
[1765590548326,0.01116631,90176.0,90175.0,0.05906]
[1765590550435,0.01116631,90176.0,90175.0,0.18096]
[1765590553534,0.01116631,90176.0,90175.0,0.54176]
[1765590561330,0.01116631,90176.0,90175.0,0.18096]
[1765590561536,0.01116631,90176.0,90175.0,0.54176]
[1765590563040,0.01116631,90176.0,90175.0,0.18096]
[1765590563249,0.01116631,90176.0,90175.0,0.54176]
[1765590565546,0.01116631,90176.0,90175.0,0.41986]
[1765590571049,0.01116631,90176.0,90175.0,0.05906]
[1765590571243,0.01116631,90176.0,90175.0,0.41986]
[1765590573751,0.03498238,90176.0,90175.0,0.41986]
[1765590577356,0.03498238,90176.0,90175.0,0.47973505]
[1765590577951,0.03498238,90176.0,90175.0,0.41986]
[1765590578258,0.09089238,90176.0,90175.0,0.47975608]
[1765590579447,0.06707631,90176.0,90175.0,0.47975608]
[1765590580458,0.01116631,90176.0,90175.0,0.41986]
[1765590587053,0.01116631,90176.0,90175.0,0.41948674]
[1765590598864,0.06667631,90176.0,90175.0,0.41948674]
[1765590599668,0.06667631,90176.0,90175.0,0.47160083]
[1765590599865,0.01116631,90176.0,90175.0,0.47160083]
[1765590600072,0.01116631,90176.0,90175.0,0.41948674]
[1765590600271,0.01116631,90176.0,90175.0,0.47244861]
[1765590600671,0.01116631,90176.0,90175.0,0.41948674]
[1765590601469,0.01116631,90176.0,90175.0,0.47244861]
[1765590602674,0.01116631,90176.0,90175.0,0.41948674]
[1765590603065,0.01116631,90176.0,90175.0,0.47172903]
[1765590603275,0.06667631,90176.0,90175.0,0.41948674]
[1765590604273,0.06667631,90176.0,90175.0,0.47186898]
[1765590604956,0.06667631,90176.0,90175.0,0.41948674]
[1765590605166,0.06667631,90176.0,90175.0,0.47305379]
[1765590605575,0.06667631,90176.0,90175.0,0.41948674]
[1765590606182,0.06667631,90176.0,90175.0,0.47305379]
[1765590606363,0.06667631,90176.0,90175.0,0.47215715]
[1765590607575,0.06667631,90176.0,90175.0,0.41948674]
[1765590608668,0.06667631,90176.0,90175.0,0.47260093]
[1765590609076,0.06667631,90176.0,90175.0,0.41948674]
[1765590609271,0.06667631,90176.0,90175.0,0.47140269]
[1765590609772,0.06667631,90176.0,90175.0,0.41948674]
[1765590611480,0.03843631,90176.0,90175.0,0.41948674]
[1765590611678,0.03843631,90176.0,90175.0,0.47175431]
[1765590611880,0.03843631,90176.0,90175.0,0.41948674]
[1765590612179,0.03843631,90176.0,90175.0,0.47259299]
[1765590613581,0.03843631,90176.0,90175.0,0.41948674]
[1765590613783,0.03843631,90176.0,90175.0,0.4712161]
[1765590614569,0.03821385,90176.0,90175.0,0.4712161]
[1765590615083,0.03821385,90176.0,90175.0,0.47236392]
[1765590616275,0.06645385,90176.0,90175.0,0.41948674]
[1765590616476,0.03821385,90176.0,90175.0,0.47119594]
[1765590616678,0.01094385,90176.0,90175.0,0.47119594]
[1765590616876,0.03815385,90176.0,90175.0,0.47119594]
[1765590617577,0.01088385,90176.0,90175.0,0.47119594]
[1765590617778,0.01088385,90176.0,90175.0,0.41948674]
[1765590617982,0.00016631,90185.0,90184.0,0.0672475]
[1765590618172,0.3608,90192.0,90191.0,0.0672466]
[1765590618173,0.41631,90192.0,90191.0,0.0672466]
[1765590618482,0.44012455,90192.0,90191.0,0.7596066]
[1765590619281,0.44212455,90192.0,90191.0,0.7726066]
[1765590619484,0.44312455,90192.0,90191.0,0.7866066]
[1765590619882,0.08232455,90192.0,90191.0,0.7866066]
[1765590620789,0.08032455,90192.0,90191.0,0.7736066]
[1765590621082,0.08732455,90192.0,90191.0,0.7606066]
[1765590621684,0.08632455,90192.0,90191.0,0.7606066]
[1765590626183,0.06251,90192.0,90191.0,0.7606066]
[1765590626384,0.08630315,90192.0,90191.0,0.7606066]
[1765590638086,0.00016631,90201.0,90200.0,0.35844875]
[1765590638290,0.00016631,90201.0,90200.0,0.6670816]
[1765590638591,0.00016631,90201.0,90200.0,0.71924785]
[1765590639188,0.00016631,90201.0,90200.0,0.6670816]
[1765590639376,0.00016631,90201.0,90200.0,0.6820816]
[1765590639579,0.00216631,90201.0,90200.0,0.6820816]
[1765590639892,0.41244844,90213.0,90212.0,0.0674741]
[1765590640979,0.41444844,90213.0,90212.0,0.0674741]
[1765590642580,0.41544844,90213.0,90212.0,0.0674741]
[1765590648292,0.41644844,90213.0,90212.0,0.0674741]
[1765590649100,0.41631831,90213.0,90212.0,0.0674741]
[1765590650099,0.43963084,90213.0,90212.0,0.0674741]
[1765590651898,0.4384017,90213.0,90212.0,0.0674741]
[1765590659799,0.43822346,90213.0,90212.0,0.0674741]
[1765590667416,0.08652253,90213.0,90212.0,0.0674741]
[1765590669113,0.08646253,90213.0,90212.0,0.0674741]
[1765590676917,0.08646253,90213.0,90212.0,0.0840041]
[1765590680615,0.09754643,90213.0,90212.0,0.0840041]
[1765590708255,0.09754643,90213.0,90212.0,0.07292]
[1765590708456,0.02731253,90213.0,90210.0,0.0397642]
[1765590708662,0.05548,90211.0,90210.0,0.0110842]
[1765590708861,0.07879253,90211.0,90210.0,0.0397642]
[1765590709062,0.07879253,90211.0,90210.0,0.0672242]
[1765590710975,0.07897171,90211.0,90210.0,0.0845042]
[1765590711473,0.08297171,90211.0,90210.0,0.0845042]
[1765590713971,0.07897171,90211.0,90210.0,0.0845042]
[1765590714162,0.08197171,90211.0,90210.0,0.0845042]
[1765590715071,0.08097171,90211.0,90210.0,0.0845042]
[1765590720971,0.07897171,90211.0,90210.0,0.0845042]
[1765590721177,0.08097171,90211.0,90210.0,0.0845042]
[1765590721782,0.07897171,90211.0,90210.0,0.0845042]
[1765590722086,0.08097171,90211.0,90210.0,0.0845042]
[1765590722982,0.08097171,90211.0,90210.0,0.4453042]
[1765590723368,0.08097171,90211.0,90210.0,0.0845042]
[1765590723583,0.08097171,90211.0,90210.0,0.4453042]
[1765590723772,0.07897171,90211.0,90210.0,0.4453042]
[1765590723973,0.05748,90211.0,90210.0,0.4453042]
[1765590726183,0.0304,90211.0,90210.0,0.4453042]
[1765590726680,0.002,90211.0,90210.0,0.4453042]
[1765590727678,0.00329631,90222.0,90221.0,0.068683]
[1765590727679,0.05816631,90222.0,90221.0,0.068683]
[1765590727985,0.08163291,90222.0,90221.0,0.068683]
[1765590729881,0.08563291,90222.0,90221.0,0.068683]
[1765590739992,0.08575926,90222.0,90221.0,0.068683]
[1765590755699,0.06216631,90222.0,90221.0,0.068683]
[1765590756004,0.08578035,90222.0,90221.0,0.068683]
[1765590758599,0.05994035,90222.0,90221.0,0.068683]
[1765590758797,0.08981035,90222.0,90221.0,0.068683]
[1765590760502,0.08581035,90222.0,90221.0,0.068683]
[1765590760702,0.08981035,90222.0,90221.0,0.068683]
[1765590761507,0.08881035,90222.0,90221.0,0.068683]
[1765590774626,0.08881035,90222.0,90221.0,0.011083]
[1765590774816,0.08881035,90222.0,90221.0,0.067743]
[1765590776614,0.05844,90218.0,90217.0,0.05666]
[1765590776814,0.05844,90218.0,90215.0,0.72027]
[1765590776815,0.05844,90216.0,90215.0,0.72027]
[1765590777120,0.08205404,90216.0,90215.0,0.74878]
[1765590778719,0.08205404,90216.0,90215.0,0.72027]
[1765590778907,0.08205404,90216.0,90215.0,0.74878]
[1765590779819,0.08505404,90216.0,90215.0,0.74878]
[1765590781307,0.08205404,90216.0,90215.0,0.74878]
[1765590781508,0.08605404,90216.0,90215.0,0.72027]
[1765590781712,0.08605404,90216.0,90215.0,0.69212]
[1765590782412,0.07017,90214.0,90213.0,0.3718838]
[1765590782617,0.0695239,90213.0,90212.0,0.00016631]
[1765590782919,0.45393794,90213.0,90212.0,0.00016631]
[1765590784422,0.49805847,90213.0,90212.0,0.00016631]
[1765590784719,0.50205847,90213.0,90212.0,0.00016631]
[1765590785020,0.45793794,90213.0,90212.0,0.00016631]
[1765590791415,0.45793794,90213.0,90212.0,0.05682631]
[1765590791625,0.45793794,90213.0,90212.0,0.00016631]
[1765590798925,0.45795053,90213.0,90212.0,0.00016631]
[1765590804234,0.09715053,90213.0,90212.0,0.00016631]
[1765590816737,0.45795053,90213.0,90212.0,0.00016631]
[1765590817541,0.09715053,90213.0,90212.0,0.00016631]
[1765590817741,0.45795053,90213.0,90212.0,0.00016631]
[1765590826057,0.09715053,90213.0,90212.0,0.00016631]
[1765590826248,0.45795053,90213.0,90212.0,0.00016631]
[1765590828357,0.09715053,90213.0,90212.0,0.00016631]
[1765590828557,0.45795053,90213.0,90212.0,0.00016631]
[1765590829659,0.09715053,90213.0,90212.0,0.00016631]
[1765590829860,0.45795053,90213.0,90212.0,0.00016631]
[1765590833364,0.45795053,90213.0,90212.0,0.07630631]
[1765590833766,0.45795053,90213.0,90212.0,0.06003631]
[1765590839572,0.09715053,90213.0,90212.0,0.06003631]
[1765590839774,0.45795053,90213.0,90212.0,0.06003631]
[1765590840271,0.45795053,90213.0,90212.0,0.07630631]
[1765590847284,0.45795053,90213.0,90212.0,0.08739041]
[1765590848173,0.45795053,90213.0,90212.0,0.07630631]
[1765590849281,0.09715053,90213.0,90212.0,0.07630631]
[1765590879707,0.45795053,90213.0,90212.0,0.07630631]
[1765590890230,0.45795053,90213.0,90212.0,0.00016631]
[1765590903541,0.45795053,90213.0,90212.0,0.07278631]
[1765590904836,0.44686663,90213.0,90212.0,0.07278631]
[1765590905038,0.44686663,90213.0,90212.0,0.08387041]
[1765590906544,0.44686663,90213.0,90212.0,0.07278631]
[1765590912353,0.08606663,90213.0,90212.0,0.07278631]
[1765590912549,0.44686663,90213.0,90212.0,0.07278631]
[1765590913552,0.42324,90213.0,90212.0,0.07278631]
[1765590933676,0.06244,90213.0,90212.0,0.07278631]
[1765590933876,0.42324,90213.0,90212.0,0.07278631]
[1765590936383,0.06244,90213.0,90212.0,0.07278631]
[1765590936578,0.42324,90213.0,90212.0,0.07278631]
[1765590942593,0.06244,90213.0,90212.0,0.07278631]
[1765590942789,0.42324,90213.0,90212.0,0.07278631]
[1765590944698,0.06244,90213.0,90212.0,0.07278631]
[1765590944898,0.42324,90213.0,90212.0,0.07278631]
[1765590951596,0.06244,90213.0,90212.0,0.07278631]
[1765590951805,0.42324,90213.0,90212.0,0.07278631]
[1765590959102,0.06244,90213.0,90212.0,0.07278631]
[1765590959292,0.42324,90213.0,90212.0,0.07278631]
[1765590960711,0.06244,90213.0,90212.0,0.07278631]
[1765590960903,0.42324,90213.0,90212.0,0.07278631]
[1765590964498,0.06244,90213.0,90212.0,0.07278631]
[1765590964701,0.42324,90213.0,90212.0,0.07278631]
[1765590967611,0.06244,90213.0,90212.0,0.07278631]
[1765590967812,0.42324,90213.0,90212.0,0.07278631]
[1765590972016,0.06244,90213.0,90212.0,0.07278631]
[1765590973506,0.05844,90213.0,90212.0,0.07578631]
[1765590974311,0.05844,90213.0,90212.0,0.07478631]
[1765590974816,0.05844,90213.0,90212.0,0.07878631]
[1765590975015,0.05844,90213.0,90212.0,0.20068631]
[1765590976511,0.05844,90213.0,90212.0,0.19868631]
[1765590976720,0.05844,90213.0,90212.0,0.20068631]
[1765590977520,0.05844,90213.0,90212.0,0.20168631]
[1765590978824,0.05844,90213.0,90212.0,0.56248631]
[1765590980322,0.05844,90213.0,90212.0,0.60235399]
[1765590981524,0.05844,90213.0,90212.0,1.29431399]
[1765590983112,0.05844,90213.0,90212.0,0.93351399]
[1765590983313,0.05844,90213.0,90212.0,1.29431399]
[1765590984720,0.05844,90213.0,90212.0,1.25444631]
[1765590985414,0.05844,90213.0,90212.0,1.29430891]
[1765590985614,0.02968,90213.0,90212.0,1.29430891]
[1765590985814,0.05805631,90222.0,90221.0,0.068113]
[1765590986918,0.05805631,90222.0,90221.0,0.069113]
[1765590987522,0.05805631,90222.0,90221.0,0.072113]
[1765590989410,0.05805631,90222.0,90221.0,0.071113]
[1765590989611,0.05805631,90222.0,90221.0,0.072113]
[1765590991227,0.05805631,90222.0,90221.0,0.071113]
[1765590991425,0.05805631,90222.0,90221.0,0.072113]
[1765590992123,0.05805631,90222.0,90221.0,0.071113]
[1765590992332,0.05805631,90222.0,90221.0,0.072113]
[1765590993319,0.05805631,90222.0,90221.0,0.071113]
[1765590999129,0.05805631,90222.0,90221.0,0.070113]
[1765590999330,0.05805631,90222.0,90221.0,0.071113]
[1765590999720,0.05805631,90222.0,90221.0,0.069113]
[1765590999922,0.05805631,90222.0,90221.0,0.072113]
[1765591000335,0.05805631,90222.0,90221.0,0.069113]
[1765591000528,0.05805631,90222.0,90221.0,0.071113]
[1765591001532,0.05805631,90222.0,90221.0,0.072113]
[1765591001933,0.00329631,90222.0,90221.0,0.072113]
[1765591002233,0.00329631,90222.0,90221.0,0.432913]
[1765591003138,0.00329631,90222.0,90221.0,0.431913]
[1765591003625,0.00329631,90222.0,90221.0,0.4727756]
[1765591003825,0.00329631,90222.0,90221.0,0.4717756]
[1765591004029,0.00329631,90222.0,90221.0,0.432913]
[1765591004340,0.00329631,90222.0,90221.0,0.49272784]
[1765591006432,0.00329631,90222.0,90221.0,0.432913]
[1765591010039,0.00329631,90222.0,90221.0,0.072113]
[1765591010240,0.00329631,90222.0,90221.0,0.432913]
[1765591014642,0.00329631,90222.0,90221.0,0.072113]
[1765591014835,0.00329631,90222.0,90221.0,0.432913]
[1765591015342,0.00329631,90222.0,90221.0,0.072113]
[1765591015538,0.06139631,90222.0,90221.0,0.432913]
[1765591015939,0.03226631,90222.0,90221.0,0.432913]
[1765591016634,0.00329631,90222.0,90221.0,0.554813]
[1765591016841,0.06139631,90222.0,90221.0,0.554813]
[1765591021334,0.03226631,90222.0,90221.0,0.554813]
[1765591021736,0.06139631,90222.0,90221.0,0.554813]
[1765591025139,0.06139631,90222.0,90221.0,0.61462784]
[1765591027450,0.06139631,90222.0,90221.0,0.25382784]
[1765591027642,0.06139631,90222.0,90221.0,0.61462784]
[1765591028245,0.06139631,90222.0,90221.0,0.554813]
[1765591028745,0.06139631,90222.0,90221.0,0.194013]
[1765591028948,0.06139631,90222.0,90221.0,0.554813]
[1765591029449,0.03226631,90222.0,90221.0,0.554813]
[1765591030957,0.06139631,90222.0,90221.0,0.554813]
[1765591031744,0.06139631,90222.0,90221.0,1.246613]
[1765591033555,0.06139631,90222.0,90221.0,0.885813]
[1765591033954,0.06139631,90222.0,90221.0,0.94568798]
[1765591042250,0.06133647,90222.0,90221.0,0.94568798]
[1765591044169,0.06133647,90222.0,90221.0,0.885813]
[1765591061371,0.03220647,90222.0,90221.0,0.885813]
[1765591064366,0.00323647,90222.0,90221.0,0.885813]
[1765591076681,0.00323647,90222.0,90221.0,1.246613]
[1765591078489,0.00323647,90222.0,90221.0,0.885813]
[1765591078672,0.00323647,90222.0,90221.0,1.246613]
[1765591081685,0.00323647,90222.0,90221.0,0.554813]
[1765591087891,0.00323647,90222.0,90221.0,0.571133]
[1765591090396,0.00323647,90222.0,90221.0,0.210333]
[1765591090598,0.00323647,90222.0,90221.0,0.571133]
[1765591096395,0.00323647,90222.0,90221.0,0.210333]
[1765591096594,0.00323647,90222.0,90221.0,0.571133]
[1765591099103,0.00323647,90222.0,90221.0,0.210333]
[1765591099290,0.00323647,90222.0,90221.0,0.571133]
[1765591101599,0.00323647,90222.0,90221.0,0.210333]
[1765591101797,0.00323647,90222.0,90221.0,0.571133]
[1765591104304,0.00323647,90222.0,90221.0,0.62396295]
[1765591105003,0.00323647,90222.0,90221.0,0.26316295]
[1765591105206,0.00323647,90222.0,90221.0,0.98476295]
[1765591105402,0.00323647,90222.0,90221.0,0.931933]
[1765591106105,0.00323647,90222.0,90221.0,0.98430017]
[1765591106800,0.00323647,90222.0,90221.0,0.98401109]
[1765591107901,0.00323647,90222.0,90221.0,0.94276707]
[1765591108609,0.00323647,90222.0,90221.0,0.99543755]
[1765591108907,0.00323647,90222.0,90221.0,0.94276707]
[1765591109109,0.00323647,90222.0,90221.0,0.99629427]
[1765591110301,0.00323647,90222.0,90221.0,0.94276707]
[1765591110501,0.38998,90246.0,90245.0,0.06679]
[1765591110704,0.02918,90246.0,90245.0,0.06679]
[1765591111707,0.03018,90246.0,90245.0,0.08079]
[1765591111908,0.06007,90246.0,90245.0,0.08079]
[1765591112620,0.06007,90246.0,90245.0,0.09579]
[1765591112910,0.06007,90246.0,90245.0,0.08179]
[1765591113112,0.06007,90246.0,90245.0,0.09579]
[1765591114112,0.03018,90246.0,90245.0,0.09579]
[1765591114811,0.001,90246.0,90245.0,0.09579]
[1765591117414,0.03018,90246.0,90245.0,0.09579]
[1765591120010,0.06007,90246.0,90245.0,0.09579]
[1765591120209,0.06007,90246.0,90245.0,0.029]
[1765591121513,0.06007,90246.0,90245.0,0.05757]
[1765591123915,0.06007,90246.0,90245.0,0.08471]
[1765591126908,0.001,90246.0,90245.0,0.08471]
[1765591138920,0.00016621,90255.0,90254.0,0.0685489]
[1765591139508,0.05809,90276.0,90275.0,0.0685463]
[1765591140914,0.02858,90276.0,90275.0,0.0715463]
[1765591141110,0.3608,90277.0,90275.0,0.0715463]
[1765591141111,0.3608,90277.0,90276.0,0.0754]
[1765591141524,0.38938,90277.0,90276.0,0.0754]
[1765591141920,0.41889,90277.0,90276.0,0.0754]
[1765591143416,0.41889,90277.0,90276.0,0.0784]
[1765591143614,0.05809,90277.0,90276.0,0.0784]
[1765591144020,0.0691661,90277.0,90276.0,0.0784]
[1765591144423,0.0701661,90277.0,90276.0,0.0784]
[1765591145226,0.02958,90277.0,90276.0,0.0784]
[1765591145724,0.05909,90277.0,90276.0,0.0784]
[1765591145928,0.06109,90277.0,90276.0,0.0784]
[1765591147025,0.05809,90277.0,90276.0,0.0784]
[1765591147325,0.06109,90277.0,90276.0,0.0784]
[1765591163632,0.06109,90277.0,90276.0,0.13007157]
[1765591164830,0.06109,90277.0,90276.0,0.0784]
[1765591176545,0.12073528,90277.0,90276.0,0.06047]
[1765591177545,0.06109,90277.0,90276.0,0.06047]
[1765591184157,0.06109,90277.0,90276.0,0.10028476]
[1765591184353,0.06109,90277.0,90276.0,0.04281476]
[1765591184556,0.06109,90277.0,90276.0,0.003]
[1765591186158,0.06109,90277.0,90276.0,0.05825]
[1765591186654,0.06109,90277.0,90276.0,0.07506]
[1765591223303,0.06109,90277.0,90276.0,0.43586]
[1765591226502,0.03158,90277.0,90276.0,0.43586]
[1765591226799,0.003,90277.0,90276.0,0.43586]
[1765591227808,0.03081,90277.0,90276.0,0.43586]
[1765591228304,0.003,90277.0,90276.0,0.43586]
[1765591229303,0.05735621,90285.0,90284.0,0.0840052]
[1765591229504,0.05735621,90285.0,90284.0,0.4448052]
[1765591230993,0.05835621,90285.0,90284.0,0.4588052]
[1765591231294,0.05835621,90285.0,90284.0,0.4728052]
[1765591240520,0.02897621,90285.0,90284.0,0.4728052]
[1765591241421,0.00116621,90285.0,90284.0,0.4728052]
[1765591243514,0.00116621,90285.0,90284.0,0.50266657]
[1765591244108,0.02897621,90285.0,90284.0,0.50266657]
[1765591245420,0.05835621,90285.0,90284.0,0.50266657]
[1765591246620,0.05835621,90285.0,90284.0,0.14186657]
[1765591246918,0.05835621,90285.0,90284.0,0.50266657]
[1765591249218,0.05835621,90285.0,90284.0,0.4728052]
[1765591249415,0.02897621,90285.0,90284.0,0.4728052]
[1765591254609,0.05677621,90285.0,90284.0,0.4728052]
[1765591254809,0.05677621,90285.0,90284.0,0.4457674]
[1765591255123,0.05677621,90285.0,90284.0,0.4186774]
[1765591255517,0.05677621,90285.0,90284.0,0.4756974]
[1765591256323,0.05677621,90285.0,90284.0,0.44582]
[1765591262231,0.05677621,90285.0,90284.0,0.028]
[1765591262232,0.06850621,90285.0,90284.0,0.028]
[1765591262446,0.12813176,90285.0,90284.0,0.028]
[1765591262646,0.06850621,90285.0,90284.0,0.028]
[1765591262843,0.07403758,90285.0,90284.0,0.028]
[1765591264438,0.06230758,90285.0,90284.0,0.028]
[1765591278247,0.06230758,90285.0,90284.0,0.05676]
[1765591282261,0.06230758,90285.0,90284.0,0.08613]
[1765591286555,0.06230758,90285.0,90284.0,0.10374]
[1765591292469,0.00116621,90285.0,90284.0,0.10374]
[1765591297567,0.00116621,90285.0,90284.0,0.46454]
[1765591303482,0.00116621,90285.0,90284.0,0.10374]
[1765591303680,0.00116621,90285.0,90284.0,0.46454]
[1765591309776,0.00116621,90285.0,90284.0,0.10374]
[1765591309982,0.00116621,90285.0,90284.0,0.46454]
[1765591310680,0.00116621,90285.0,90284.0,0.10374]
[1765591310880,0.00116621,90285.0,90284.0,0.46454]
[1765591322290,0.00116621,90285.0,90284.0,0.49440435]
[1765591324092,0.00116621,90285.0,90284.0,0.46454]
[1765591334299,0.00116621,90285.0,90284.0,1.1559]
[1765591339699,0.05909621,90285.0,90284.0,1.1559]
[1765591344894,0.03017621,90285.0,90284.0,1.1559]